lending/lending_fUSD_20260119
["ID","MTS","AMOUNT","RATE_DAILY","PERIOD"]
[402716255,1768830639041,-500.0,0.00015566,2]
[402716256,1768830639051,-500.0,0.00015566,2]
[402716257,1768830639061,-500.0,0.00015566,2]
[402716258,1768830639071,-500.0,0.00015566,2]
[402716259,1768830639081,-500.0,0.00015566,2]
[402716260,1768830639092,-386.08778239,0.00015566,2]
[402716261,1768830639101,-500.0,0.00015566,2]
[402716262,1768830639111,-327.49083589,0.00015566,2]
[402716263,1768830639121,-645.9652858,0.00015566,2]
[402716264,1768830639131,-500.0,0.00015566,2]
[402716265,1768830639141,-500.0,0.00015566,2]
[402716266,1768830639152,-500.0,0.00015566,2]
[402716267,1768830639163,-500.0,0.00015566,2]
[402716268,1768830639174,-500.0,0.00015566,2]
[402716269,1768830639185,-500.0,0.00015566,2]
[402716270,1768830639195,-500.0,0.00015566,2]
[402716271,1768830639206,-500.0,0.00015566,2]
[402716272,1768830639217,-333.25335115,0.00015596,2]
[402716273,1768830639227,-200.0,0.00015612,2]
[402716274,1768830639238,-200.0,0.00015621,2]
[402716275,1768830639248,-200.0,0.00015621,2]
[402716276,1768830639259,-3234.66271045,0.0001564,2]
[402716277,1768830639269,-6477.77200214,0.00015648,2]
[402716278,1768830639279,-237784.17642978,0.00015676,2]
[402716279,1768830639288,-595.12,0.00015739,2]
[402716280,1768830639297,-500.0,0.00015744,2]
[402716281,1768830639306,-200.0,0.00015768,2]
[402716282,1768830639315,-200.0,0.00015777,2]
[402716283,1768830639325,-200.0,0.00015777,2]
[402716284,1768830639334,-151.0,0.00015792,2]
[402716285,1768830639344,-151.0,0.00015799,2]
[402716286,1768830639353,-151.0,0.00015806,2]
[402716287,1768830639363,-151.0,0.00015811,2]
[402716288,1768830639372,-151.0,0.00015815,2]
[402716289,1768830639381,-253.21,0.0001584,2]
[402716290,1768830639391,-8601.20254251,0.00015851,2]
[402716291,1768830639400,-162.0,0.000159,2]
[402716292,1768830639409,-1300.0,0.000159,5]
[402716293,1768830639419,-200.0,0.00015925,2]
[402716294,1768830639428,-6477.77200214,0.00015929,2]
[402716295,1768830639438,-200.0,0.00015935,2]
[402716296,1768830639448,-200.0,0.00015935,2]
[402716297,1768830639458,-2114.66941923,0.0001594,2]
[402716298,1768830639468,-500.0,0.00015973,2]
[402716299,1768830639477,-500.0,0.00015973,2]
[402716300,1768830639486,-500.0,0.00015973,2]
[402716301,1768830639496,-500.0,0.00015973,2]
[402716302,1768830639505,-500.0,0.00015973,2]
[402716303,1768830639514,-500.0,0.00015973,2]
[402716304,1768830639523,-500.0,0.00015973,2]
[402716305,1768830639533,-500.0,0.00015973,2]
[402716306,1768830639542,-500.0,0.00015973,2]
[402716307,1768830639553,-502.35456952,0.00015973,2]
[402716308,1768830639562,-605.56754048,0.00015973,2]
[402716309,1768830639573,-500.0,0.00015973,2]
[402716310,1768830639582,-500.0,0.00015973,2]
[402716311,1768830639592,-500.0,0.00015973,2]
[402716312,1768830639602,-500.0,0.00015973,2]
[402716313,1768830639611,-500.0,0.00015973,2]
[402716314,1768830639621,-500.0,0.00015973,2]
[402716315,1768830639630,-500.0,0.00015973,2]
[402716316,1768830639640,-500.0,0.00015973,2]
[402716317,1768830639649,-500.0,0.00015973,2]
[402716318,1768830639659,-500.0,0.00015973,2]
[402716319,1768830639671,-500.0,0.00015973,2]
[402716320,1768830639681,-500.0,0.00015973,2]
[402716321,1768830639691,-500.0,0.00015973,2]
[402716322,1768830639701,-500.0,0.00015973,2]
[402716323,1768830639710,-500.0,0.00015973,2]
[402716324,1768830639720,-500.0,0.00015973,2]
[402716325,1768830639729,-501.15779202,0.00015973,2]
[402716326,1768830639738,-678.0,0.00015988,2]
[402716327,1768830639747,-259.0,0.00015992,2]
[402716328,1768830639757,-166.66,0.00015999,2]
[402716329,1768830639767,-156.09,0.00015999,2]
[402716330,1768830639776,-277.19,0.00016,2]
[402716331,1768830639786,-503.40807885,0.00016005,2]
[402716332,1768830639795,-595.12,0.00016013,2]
[402716333,1768830639804,-241.92383433,0.00016017,2]
[402716334,1768830639813,-500.0,0.00016018,2]
[402716335,1768830639823,-585.0,0.00016058,2]
[402716336,1768830639833,-200.0,0.00016085,2]
[402716337,1768830639843,-223.0,0.00016088,2]
[402716338,1768830639853,-990.0,0.0001609,2]
[402716339,1768830639866,-200.0,0.00016094,2]
[402716340,1768830639875,-200.0,0.00016094,2]
[402716341,1768830639885,-300.0,0.0001612,2]
[402716342,1768830639897,-909.0,0.00016127,2]
[402716343,1768830639907,-8601.20254251,0.00016144,2]
[402716344,1768830639918,-219.0,0.00016152,2]
[402716345,1768830639928,-617.0,0.00016159,2]
[402716346,1768830639937,-355.0,0.00016184,2]
[402716347,1768830639947,-1797.0,0.00016192,2]
[402716348,1768830639957,-150.0,0.000162,2]
[402716349,1768830639967,-150.0,0.000162,2]
[402716350,1768830639976,-150.0,0.000162,2]
[402716351,1768830639986,-150.0,0.000162,2]
[402716352,1768830639997,-150.0,0.000162,2]
[402716353,1768830640010,-151.57543633,0.000162,2]
[402716354,1768830640020,-150.0,0.000162,2]
[402716355,1768830640031,-150.58517454,0.000162,2]
[402716356,1768830640040,-150.0,0.000162,2]
[402716357,1768830640050,-150.0,0.000162,2]
[402716358,1768830640060,-6477.77200214,0.00016211,2]
[402716359,1768830640069,-157.0,0.00016217,2]
[402716360,1768830640079,-589.0,0.00016221,2]
[402716361,1768830640089,-152.0,0.00016221,2]
[402716362,1768830640100,-428.0,0.00016224,2]
[402716363,1768830640110,-281.0,0.00016249,2]
[402716364,1768830640121,-231.0,0.00016254,2]
[402716365,1768830640131,-1583.0,0.00016256,2]
[402716366,1768830640141,-185.02,0.00016259,2]
[402716367,1768830640150,-350.0,0.00016281,2]
[402716368,1768830640160,-390.0,0.00016286,2]
[402716369,1768830640171,-595.12,0.00016287,2]
[402716370,1768830640181,-500.0,0.00016299,2]
[402716371,1768830640190,-213235.94,0.000163,2]
[402716372,1768830640200,-266.0,0.00016313,2]
[402716373,1768830640210,-494.0,0.00016319,2]
[402716374,1768830640220,-6755.84,0.00016324,2]
[402716375,1768830640229,-166.66,0.00016336,2]
[402716376,1768830640239,-173.0,0.00016345,2]
[402716377,1768830640249,-328.0,0.00016351,2]
[402716378,1768830640259,-171.0,0.00016377,2]
[402716379,1768830640268,-364.0,0.00016409,2]
[402716380,1768830640277,-3240.0,0.00016422,2]
[402716381,1768830640287,-8601.20254251,0.00016437,2]
[402716382,1768830640296,-538.06484043,0.00016438,2]
[402716383,1768830640305,-500.0,0.00016438,2]
[402716384,1768830640314,-556.62599191,0.00016438,2]
[402716385,1768830640323,-249.36693846,0.00016438,2]
[402716386,1768830640332,-500.0,0.00016438,2]
[402716387,1768830640342,-500.0,0.00016438,2]
[402716388,1768830640352,-500.0,0.00016438,2]
[402716389,1768830640361,-173.99894793,0.00016438,2]
[402716390,1768830640370,-150.0,0.00016441,2]
[402716391,1768830640380,-495.0,0.00016473,2]
[402716392,1768830640389,-6477.77200214,0.00016492,2]
[402716393,1768830640398,-600.0,0.00016493,2]
[402716394,1768830640407,-162.0,0.000165,2]
[402716395,1768830640416,-162.0,0.000165,2]
[402716396,1768830640427,-1500.0,0.00016512,2]
[402716397,1768830640436,-150.0,0.0001656,2]
[402716398,1768830640445,-595.12,0.00016561,2]
[402716399,1768830640455,-587.8984132,0.00016596,2]
[402716400,1768830640464,-879.46086626,0.00016596,2]
[402716401,1768830640474,-1189.9404,0.00016596,2]
[402716402,1768830640484,-1000.0,0.00016658,2]
[402716403,1768830640495,-1000.0,0.00016658,2]
[402716404,1768830640505,-1000.0,0.00016658,2]
[402716405,1768830640515,-500.0,0.00016658,2]
[402716406,1768830640525,-280.67236905,0.00016658,2]
[402716407,1768830640537,-620.0,0.00016658,2]
[402716408,1768830640547,-500.0,0.00016658,2]
[402716409,1768830640557,-500.0,0.00016658,2]
[402716410,1768830640567,-500.0,0.00016658,2]
[402716411,1768830640576,-500.0,0.00016658,2]
[402716412,1768830640586,-500.0,0.00016658,2]
[402716413,1768830640596,-500.0,0.00016658,2]
[402716414,1768830640607,-500.0,0.00016658,2]
[402716415,1768830640616,-500.0,0.00016658,2]
[402716416,1768830640627,-500.0,0.00016658,2]
[402716417,1768830640636,-4444.0,0.00016658,2]
[402716418,1768830640647,-1000.0,0.00016658,2]
[402716419,1768830640656,-500.0,0.00016658,2]
[402716420,1768830640667,-1000.0,0.00016658,2]
[402716421,1768830640676,-1000.0,0.00016658,2]
[402716422,1768830640687,-1000.0,0.00016658,2]
[402716423,1768830640696,-578.20924308,0.00016658,2]
[402716424,1768830640706,-1000.0,0.00016658,2]
[402716425,1768830640715,-1000.0,0.00016658,2]
[402716426,1768830640725,-1000.0,0.00016658,2]
[402716427,1768830640736,-1000.0,0.00016658,2]
[402716428,1768830640746,-3008.62089601,0.00016658,2]
[402716429,1768830640755,-1000.0,0.00016658,2]
[402716430,1768830640765,-174.61919141,0.00016658,2]
[402716431,1768830640774,-1000.0,0.00016658,2]
[402716432,1768830640783,-1000.0,0.00016658,2]
[402716433,1768830640792,-574.12855637,0.00016658,2]
[402716434,1768830640802,-250.0,0.00016658,2]
[402716435,1768830640811,-250.0,0.00016658,2]
[402716436,1768830640821,-213.88458873,0.00016658,2]
[402716437,1768830640830,-500.0,0.00016658,2]
[402716438,1768830640839,-500.0,0.00016658,2]
[402716439,1768830640848,-151.0,0.00016658,2]
[402716440,1768830640864,-166.66,0.00016673,2]
[402716441,1768830640874,-253.21,0.00016673,2]
[402716442,1768830640884,-166.34,0.00016712,2]
[402716443,1768830640895,-8601.20254251,0.00016729,2]
[402716444,1768830640904,-6477.77200214,0.00016774,2]
[402716445,1768830640914,-420.0,0.00016809,2]
[402716446,1768830640923,-1680.0,0.00016894,2]
[402716447,1768830640933,-162.0,0.000169,2]
[402716448,1768830640942,-300.0,0.00016902,2]
[402716449,1768830640952,-233.73659831,0.00016902,2]
[402716450,1768830640962,-150.0,0.0001692,2]
[402716451,1768830640971,-249.28950426,0.00016921,2]
[402716452,1768830640980,-999.99,0.00016922,2]
[402716453,1768830640991,-150.99,0.00016922,2]
[402716454,1768830641001,-9226.45,0.00016922,2]
[402716455,1768830641011,-499.99,0.00016922,2]
[402716456,1768830641020,-9999.99,0.00016922,2]
[402716457,1768830641031,-1723.06,0.00016922,2]
[402716458,1768830641040,-2777.9,0.00016922,2]
[402716459,1768830641051,-2538.16,0.00016922,2]
[402716460,1768830641060,-15279.85,0.00016922,2]
[402716461,1768830641070,-1765.99,0.00016922,2]
[402716462,1768830641080,-9999.99,0.00016922,2]
[402716463,1768830641090,-1192.77,0.00016922,2]
[402716464,1768830641100,-9999.99,0.00016922,2]
[402716465,1768830641110,-1536.27,0.00016922,2]
[402716466,1768830641120,-1550.25,0.00016922,2]
[402716467,1768830641129,-5239.07,0.00016922,2]
[402716468,1768830641139,-348.28,0.00016922,2]
[402716469,1768830641149,-150.99,0.00016922,2]
[402716470,1768830641159,-9999.99,0.00016922,2]
[402716471,1768830641168,-250.0,0.00017,2]
[402716472,1768830641178,-166.67,0.00017009,2]
[402716473,1768830641189,-250.0,0.00017009,2]
[402716474,1768830641198,-328.54068909,0.00017009,2]
[402716475,1768830641208,-271.31811681,0.00017009,2]
[402716476,1768830641217,-195.0,0.00017009,2]
[402716477,1768830641228,-600.0,0.00017009,2]
[402716478,1768830641237,-250.0,0.00017009,2]
[402716479,1768830641247,-166.66,0.00017009,2]
[402716480,1768830641257,-155.0,0.00017012,2]
[402716481,1768830641267,-8601.20254251,0.00017022,2]
[402716482,1768830641276,-6477.77200214,0.00017055,2]
[402716483,1768830641285,-150.0,0.000171,2]
[402716484,1768830641295,-150.0,0.000171,2]
[402716485,1768830641304,-600.0,0.00017111,2]
[402716486,1768830641314,-500.0,0.00017119,2]
[402716487,1768830641323,-507.55985946,0.00017119,2]
[402716488,1768830641332,-500.0,0.00017119,2]
[402716489,1768830641342,-168.15828134,0.00017206,2]
[402716490,1768830641351,-595.37131296,0.00017206,2]
[402716491,1768830641361,-1000.0,0.0001726,2]
[402716492,1768830641371,-156.09,0.00017275,2]
[402716493,1768830641380,-150.0,0.0001728,2]
[402716494,1768830641389,-163.82,0.000173,2]
[402716495,1768830641399,-8601.20254251,0.00017315,2]
[402716496,1768830641408,-935.28,0.00017315,2]
[402716497,1768830641417,-168.0,0.00017315,2]
[402716498,1768830641428,-6477.77200214,0.00017337,2]
[402716499,1768830641437,-166.66,0.00017346,2]
[402716500,1768830641448,-162.0,0.0001736,2]
[402716501,1768830641458,-264.0,0.00017364,2]
[402716502,1768830641470,-1146.0,0.00017383,2]
[402716503,1768830641480,-1002.10968086,0.00017387,2]
[402716504,1768830641491,-1146.0,0.00017403,2]
[402716505,1768830641498,-1146.0,0.0001745,2]
[402716506,1768830641506,-164.62,0.00017457,7]
[402716507,1768830641514,-579.60625,0.00017481,2]
[402716508,1768830641523,-264.0,0.00017493,2]
[402716509,1768830641532,-2000.0,0.000175,2]
[402716510,1768830641541,-500.0,0.000175,2]
[402716511,1768830641549,-1600.0,0.000175,6]
[402716512,1768830641559,-168.0,0.00017501,2]
[402716513,1768830641568,-253.21,0.00017507,2]
[402716514,1768830641576,-958.2,0.00017519,2]
[402716515,1768830641584,-1000.0,0.00017534,2]
[402716516,1768830641593,-222.5,0.00017548,2]
[402716517,1768830641602,-222.5,0.00017589,2]
[402716518,1768830641611,-300.0,0.000176,6]
[402716519,1768830641620,-8601.20254251,0.00017607,2]
[402716520,1768830641630,-500.0,0.00017615,2]
[402716521,1768830641639,-150.0,0.00017615,2]
[402716522,1768830641648,-500.0,0.00017615,2]
[402716523,1768830641657,-150.0,0.00017615,2]
[402716524,1768830641667,-6477.77200214,0.00017618,2]
[402716525,1768830641676,-168.0,0.00017627,2]
[402716526,1768830641686,-222.5,0.0001763,2]
[402716527,1768830641697,-150.0,0.0001764,2]
[402716528,1768830641707,-1809.93197595,0.0001764,2]
[402716529,1768830641718,-500.0,0.0001767,2]
[402716530,1768830641728,-150.0,0.0001767,2]
[402716531,1768830641739,-500.0,0.0001767,2]
[402716532,1768830641748,-150.0,0.0001767,2]
[402716533,1768830641759,-222.5,0.00017671,2]
[402716534,1768830641769,-185.02,0.00017672,2]
[402716535,1768830641780,-877.0,0.0001768,2]
[402716536,1768830641790,-173.09,0.00017682,2]
[402716537,1768830641802,-166.66,0.00017683,2]
[402716538,1768830641811,-300.0,0.000177,6]
[402716539,1768830641822,-222.5,0.00017712,2]
[402716540,1768830641833,-500.0,0.00017725,2]
[402716541,1768830641843,-200.0,0.00017725,2]
[402716542,1768830641854,-500.0,0.00017725,2]
[402716543,1768830641867,-200.0,0.00017725,2]
[402716544,1768830641877,-600.0,0.0001773,2]
[402716545,1768830641887,-222.5,0.00017753,2]
[402716546,1768830641898,-617.40005154,0.00017754,2]
[402716547,1768830641908,-500.0,0.00017779,2]
[402716548,1768830641918,-500.0,0.00017779,2]
[402716549,1768830641929,-222.5,0.00017795,2]
[402716550,1768830641939,-300.0,0.000178,6]
[402716551,1768830641949,-264.0,0.00017807,2]
[402716552,1768830641958,-150.0,0.00017808,2]
[402716553,1768830641969,-1000.0,0.00017808,2]
[402716554,1768830641979,-1038.00021,0.0001783,2]
[402716555,1768830641989,-500.0,0.00017834,2]
[402716556,1768830641999,-500.0,0.00017834,2]
[402716557,1768830642010,-222.5,0.00017836,2]
[402716558,1768830642021,-150.0,0.00017863,2]
[402716559,1768830642031,-222.5,0.00017877,2]
[402716560,1768830642040,-1038.00021,0.0001788,2]
[402716561,1768830642050,-264.0,0.00017881,2]
[402716562,1768830642060,-500.0,0.00017889,2]
[402716563,1768830642069,-500.0,0.00017889,2]
[402716564,1768830642078,-2186.75246408,0.00017889,2]
[402716565,1768830642089,-13140.0292,0.000179,2]
[402716566,1768830642100,-1000.0,0.000179,2]
[402716567,1768830642109,-500.0,0.000179,2]
[402716568,1768830642119,-5968.1593365,0.000179,3]
[402716569,1768830642130,-307.027682,0.000179,2]
[402716570,1768830642140,-307.027682,0.000179,2]
[402716571,1768830642151,-307.027682,0.000179,2]
[402716572,1768830642161,-307.027682,0.000179,2]
[402716573,1768830642171,-577.3608,0.000179,2]
[402716574,1768830642181,-577.3608,0.000179,2]
[402716575,1768830642191,-577.3608,0.000179,2]
[402716576,1768830642202,-577.3608,0.000179,2]
[402716577,1768830642212,-151.0,0.000179,2]
[402716578,1768830642223,-151.0,0.000179,2]
[402716579,1768830642233,-279.616951,0.000179,2]
[402716580,1768830642244,-279.616951,0.000179,2]
[402716581,1768830642254,-279.616951,0.000179,2]
[402716582,1768830642265,-279.616951,0.000179,2]
[402716583,1768830642276,-6477.77200214,0.000179,2]
[402716584,1768830642287,-300.0,0.000179,6]
[402716585,1768830642297,-155.565732,0.000179,2]
[402716586,1768830642307,-151.0,0.000179,2]
[402716587,1768830642317,-165.75900184,0.000179,2]
[402716588,1768830642327,-165.75900182,0.000179,2]
[402716589,1768830642518,-165.75900182,0.000179,2]
[402716590,1768830642562,-165.75900182,0.000179,2]
[402716591,1768830642572,-165.75900182,0.000179,2]
[402716592,1768830642581,-165.75900182,0.000179,2]
[402716594,1768830642591,-3717.0,0.000179,2]
[402716596,1768830642601,-156.09,0.00017916,2]
[402716598,1768830642610,-150.0,0.00017918,2]
[402716600,1768830642618,-222.5,0.00017918,2]
[402716602,1768830642627,-5800.0,0.00017926,2]
[402716603,1768830642636,-1038.00021,0.0001793,2]
[402716605,1768830642644,-5800.0,0.00017935,2]
[402716606,1768830642654,-5800.0,0.00017943,2]
[402716607,1768830642663,-500.0,0.00017944,2]
[402716608,1768830642672,-500.0,0.00017944,2]
[402716609,1768830642681,-166.67,0.00017945,2]
[402716610,1768830642689,-5800.0,0.00017952,2]
[402716611,1768830642698,-222.5,0.00017959,2]
[402716612,1768830642707,-5800.0,0.0001796,2]
[402716613,1768830642715,-5800.0,0.00017968,2]
[402716614,1768830642726,-150.0,0.00017972,2]
[402716615,1768830642736,-500.0,0.00017973,2]
[402716616,1768830642747,-500.0,0.00017973,2]
[402716618,1768830642758,-500.0,0.00017973,2]
[402716619,1768830642767,-5800.0,0.00017977,2]
[402716620,1768830642777,-1038.00021,0.0001798,2]
[402716621,1768830642787,-264.0,0.00017983,2]
[402716622,1768830642797,-5800.0,0.00017985,2]
[402716623,1768830642807,-487.18922989,0.0001799,2]
[402716624,1768830642817,-487.18922989,0.0001799,2]
[402716625,1768830642827,-5800.0,0.00017994,2]
[402716626,1768830642836,-151.0,0.00017994,2]
[402716627,1768830642846,-431.200633,0.00017994,2]
[402716628,1768830642858,-431.200633,0.00017994,2]
[402716629,1768830642870,-431.200633,0.00017994,2]
[402716630,1768830642880,-431.200633,0.00017994,2]
[402716631,1768830642892,-500.0,0.00017999,2]
[402716632,1768830642903,-500.0,0.00017999,2]
[402716633,1768830642913,-500.0,0.00017999,2]
[402716634,1768830642923,-500.0,0.00017999,2]
[402716635,1768830642932,-500.0,0.00017999,2]
[402716636,1768830642942,-163.26702471,0.00017999,2]
[402716637,1768830642952,-666.0,0.00017999,2]
[402716638,1768830642962,-589.03869133,0.00017999,2]
[402716639,1768830642972,-500.0,0.00017999,2]
[402716640,1768830642981,-500.0,0.00017999,2]
[402716641,1768830642992,-500.0,0.00017999,2]
[402716642,1768830643001,-219.66549714,0.00017999,2]
[402716643,1768830643011,-300.0,0.00017999,2]
[402716644,1768830643021,-300.0,0.00017999,2]
[402716645,1768830643031,-500.0,0.00017999,2]
[402716646,1768830643041,-500.0,0.00017999,2]
[402716647,1768830643051,-500.0,0.00017999,2]
[402716648,1768830643063,-300.0,0.00017999,2]
[402716649,1768830643072,-666.0,0.00017999,2]
[402716650,1768830643083,-150.0,0.00018,2]
[402716651,1768830643094,-150.0,0.00018,2]
[402716652,1768830643105,-150.0,0.00018,2]
[402716653,1768830643114,-150.0,0.00018,2]
[402716654,1768830643124,-150.0,0.00018,2]
[402716655,1768830643134,-150.0,0.00018,2]
[402716656,1768830643144,-4079680.92501592,0.00018,2]
[402716657,1768830643154,-989.88,0.00018,7]
[402716658,1768830643163,-1929662.99872985,0.00018,2]
[402716660,1768830648209,-1.7e-07,0.000179,2]
[402716661,1768830648256,-151.0,0.00015973,2]
[402716662,1768830648267,-8601.20254234,0.000179,2]
[402716663,1768830648279,-58087.76497377,0.00018,2]
[402716664,1768830648304,-900533.13232129,0.00018,2]
[402716665,1768830648315,-1410051.94148532,0.00018,2]
[402716666,1768830648327,-1348.73,0.00018,3]
[402716667,1768830648338,-1149557.33125188,0.00018,2]
[402716668,1768830648578,-295.88646622,0.00015363,2]
[402716669,1768830673096,4104.136,0.00015265,2]
[402716670,1768830685067,5895.874,0.00015265,2]
[402716671,1768830685111,10000.01,0.00015265,2]
[402716672,1768830685149,10000.01,0.00015265,2]
[402716673,1768830685185,10000.01,0.00015265,2]
[402716674,1768830685222,10000.01,0.00015265,2]
[402716675,1768830685815,10000.01,0.00015265,2]
[402716676,1768830685885,10000.01,0.00015265,2]
[402716677,1768830685920,10000.01,0.00015265,2]
[402716678,1768830685950,10000.01,0.00015265,2]
[402716679,1768830685978,10000.01,0.00015265,2]
[402716680,1768830686006,904104.036,0.00015265,2]
[402716681,1768830686542,-204.11353378,0.00015363,2]
[402716682,1768830686567,-45.65365515,0.00015364,2]
[402716683,1768830687590,-248.61363329,0.00015364,2]
[402716684,1768830711991,4114.8779,0.00015265,2]
[402716685,1768830718639,5885.1321,0.00015265,2]
[402716686,1768830718662,10000.01,0.00015265,2]
[402716687,1768830718684,3813.5737,0.00015265,2]
[402716688,1768830720300,-205.73271156,0.00015364,2]
[402716689,1768830727412,224.165576,7.945e-05,2]
[402716690,1768830766777,5962.270724,0.00015265,2]
[402716691,1768830766799,749.917376,0.00015265,2]
[402716692,1768830791378,500.0,0.00015265,2]
[402716693,1768830811536,261.0,0.00014918,2]
[402716694,1768830813277,-171.64373162,0.00015338,2]
[402716695,1768830818532,8489.092624,0.00015265,2]
[402716696,1768830818558,10000.01,0.00015265,2]
[402716697,1768830818585,10000.01,0.00015265,2]
[402716698,1768830818610,10000.01,0.00015265,2]
[402716699,1768830818635,10000.01,0.00015265,2]
[402716700,1768830818660,10000.01,0.00015265,2]
[402716701,1768830818686,10000.01,0.00015265,2]
[402716702,1768830818712,10000.01,0.00015265,2]
[402716703,1768830818739,10000.01,0.00015265,2]
[402716704,1768830818765,10000.01,0.00015265,2]
[402716705,1768830818790,901510.817376,0.00015265,2]
[402716706,1768830819366,-89.35626838,0.00015338,2]
[402716707,1768830827846,1600.0,0.00025229,120]
[402716708,1768830831075,164.84051,0.0001497,2]
[402716709,1768830869854,3554.2764,0.00015265,2]
[402716710,1768830882881,361.52511982,0.00011106,2]
[402716711,1768830888882,173.2,0.00027397,120]
[402716713,1768830902970,-410.64373162,0.00015364,2]
[402716714,1768830923931,6084.20848018,0.00015287,2]
[402716715,1768830923955,3312.06019582,0.00015287,2]
[402716716,1768830945430,500.0,0.00015265,2]
[402716717,1768830971878,6187.94980418,0.00015265,2]
[402716718,1768830971910,10000.01,0.00015265,2]
[402716719,1768830971940,10000.01,0.00015265,2]
[402716720,1768830971970,10000.01,0.00015265,2]
[402716721,1768830972001,10000.01,0.00015265,2]
[402716722,1768830972032,10000.01,0.00015265,2]
[402716723,1768830972059,10000.01,0.00015265,2]
[402716724,1768830972087,10000.01,0.00015265,2]
[402716725,1768830972115,10000.01,0.00015265,2]
[402716726,1768830972144,10000.01,0.00015265,2]
[402716727,1768830972171,185027.72376551,0.00015265,2]
[402716728,1768830972207,718784.23643031,0.00015265,2]
[402716729,1768831052938,-89.35626838,0.00015364,2]
[402716730,1768831052966,-213.95736327,0.00015364,2]
[402716731,1768831055590,-209.26423404,0.00015364,2]
[402716732,1768831100971,500.0,0.00015279,2]
[402716733,1768831130818,-326.90132893,0.00015365,2]
[402716734,1768831134039,500.0,0.00027397,120]
[402716735,1768831134104,-247.85664288,0.00015365,2]
[402716736,1768831136099,-207.16504362,0.00015365,2]
[402716737,1768831139551,-303.55282504,0.00015365,2]
[402716738,1768831142250,-194.66370652,0.00015364,2]
[402716739,1768831144226,-105.33629348,0.00015364,2]
[402716740,1768831144253,-185.38813448,0.00015365,2]
[402716741,1768831160583,200.0,0.000149,5]
[402716742,1768831202281,1058.17471531,0.00015271,2]
[402716743,1768831250776,500.0,0.00015271,2]
[402716744,1768831254145,258.48917087,0.00015271,2]
[402716745,1768831295133,3675.17,0.00015058,2]
[402716746,1768831295191,338.381,0.00015058,2]
[402716747,1768831309822,151.65027424,0.00015265,2]
[402716748,1768831310993,-201.1,0.00015355,2]
[402716749,1768831313185,-256.17296837,0.00015355,2]
[402716750,1768831318382,-201.1,0.00015355,2]
[402716751,1768831325711,-151.08296096,0.00015354,2]
[402716752,1768831365096,3518.14483958,0.00015265,2]
[402716753,1768831365120,7327.04715097,0.00015265,2]
[402716754,1768831400225,167.6921,0.00015255,2]
[402716755,1768831428467,200.0,0.00014754,2]
[402716756,1768831429891,1852.42,0.00014754,2]
[402716757,1768831459042,200.0,0.00014761,2]
[402716759,1768831575324,252.85074903,0.00015264,2]
[402716760,1768831575348,9503.00016622,0.00015264,2]
[402716761,1768831575911,-277.19,0.000153,2]
[402716762,1768831575936,-157.68395652,0.000153,2]
[402716763,1768831575961,-55.14197514,0.00015326,2]
[402716764,1768831581470,-199.89891448,0.00015326,2]